[Event "Titled Tuesday Blitz October 25 Late 2022"]
[White "Barria Zuniga, Daniel"]
[Black "Curtis, John"]
[WhiteFideId "3400816"]
[BlackFideId "3200256"]
[WhiteElo "2414"]
[BlackElo "2203"]
[Result "1/2-1/2"]
[Round "01"]
[TimeControl "180+1"]
[Date "2022.10.26"]
[WhiteClock "0:00:15"]
[BlackClock "0:00:21"]

1. d4 {[%clk 0:02:55]}  Nf6 {[%clk 0:02:57]} 2. c4 {[%clk 0:02:54]}  c5 {[%clk 0:02:57]} 3. d5 {[%clk 0:02:53]}  b5 {[%clk 0:02:56]} 4. Qc2 {[%clk 0:02:53]}  e6 {[%clk 0:02:54]} 5. e4 {[%clk 0:02:48]}  exd5 {[%clk 0:02:52]} 6. cxd5 {[%clk 0:02:46]}  b4 {[%clk 0:02:41]} 7. Nd2 {[%clk 0:02:41]}  d6 {[%clk 0:02:41]} 8. Nc4 {[%clk 0:02:39]}  Ba6 {[%clk 0:02:34]} 9. Bf4 {[%clk 0:02:29]}  Be7 {[%clk 0:02:31]} 10. e5 {[%clk 0:02:13]}  dxe5 {[%clk 0:02:21]} 11. Bxe5 {[%clk 0:02:10]}  Bxc4 {[%clk 0:01:50]} 12. Bxc4 {[%clk 0:02:08]}  O-O {[%clk 0:01:46]} 13. O-O-O {[%clk 0:02:07]}  Bd6 {[%clk 0:01:45]} 14. f4 {[%clk 0:02:04]}  Qc7 {[%clk 0:01:39]} 15. Nf3 {[%clk 0:02:03]}  Ng4 {[%clk 0:01:38]} 16. Rhe1 {[%clk 0:02:01]}  Nd7 {[%clk 0:01:38]} 17. Qf5 {[%clk 0:01:54]}  Ngf6 {[%clk 0:01:21]} 18. g4 {[%clk 0:01:48]}  a6 {[%clk 0:01:08]} 19. g5 {[%clk 0:01:47]}  g6 {[%clk 0:01:04]} 20. Qh3 {[%clk 0:01:36]}  Nh5 {[%clk 0:01:04]} 21. Qg4 {[%clk 0:01:27]}  Rfe8 {[%clk 0:01:04]} 22. Bxd6 {[%clk 0:01:09]}  Qxd6 {[%clk 0:01:03]} 23. Ne5 {[%clk 0:01:10]}  Nxe5 {[%clk 0:01:03]} 24. fxe5 {[%clk 0:01:10]}  Rxe5 {[%clk 0:01:02]} 25. Rxe5 {[%clk 0:01:10]}  Qxe5 {[%clk 0:01:03]} 26. d6 {[%clk 0:01:10]}  Rd8 {[%clk 0:00:52]} 27. d7 {[%clk 0:01:00]}  Qf4+ {[%clk 0:00:51]} 28. Qxf4 {[%clk 0:01:00]}  Nxf4 {[%clk 0:00:52]} 29. Bxa6 {[%clk 0:00:59]}  Ne6 {[%clk 0:00:43]} 30. h4 {[%clk 0:00:57]}  Kf8 {[%clk 0:00:42]} 31. Bb5 {[%clk 0:00:56]}  Ke7 {[%clk 0:00:42]} 32. a4 {[%clk 0:00:51]}  bxa3 {[%clk 0:00:40]} 33. bxa3 {[%clk 0:00:50]}  Nd4 {[%clk 0:00:36]} 34. Ba4 {[%clk 0:00:47]}  Ra8 {[%clk 0:00:33]} 35. Re1+ {[%clk 0:00:45]}  Ne6 {[%clk 0:00:33]} 36. Re4 {[%clk 0:00:37]}  Kd6 {[%clk 0:00:14]} 37. Kb2 {[%clk 0:00:35]}  Rb8+ {[%clk 0:00:14]} 38. Kc3 {[%clk 0:00:34]}  Ra8 {[%clk 0:00:11]} 39. Kb2 {[%clk 0:00:33]}  Rb8+ {[%clk 0:00:11]} 40. Ka2 {[%clk 0:00:33]}  Ra8 {[%clk 0:00:11]} 41. Bb5 {[%clk 0:00:33]}  Rb8 {[%clk 0:00:10]} 42. a4 {[%clk 0:00:32]}  Kc7 {[%clk 0:00:11]} 43. Kb2 {[%clk 0:00:28]}  Nd4 {[%clk 0:00:11]} 44. Re8 {[%clk 0:00:28]}  Rd8 {[%clk 0:00:11]} 45. Rxd8 {[%clk 0:00:26]}  Kxd8 {[%clk 0:00:11]} 46. Kc3 {[%clk 0:00:26]}  Nxb5+ {[%clk 0:00:09]} 47. axb5 {[%clk 0:00:27]}  Kxd7 {[%clk 0:00:10]} 48. Kc4 {[%clk 0:00:25]}  Kd6 {[%clk 0:00:10]} 49. b6 {[%clk 0:00:26]}  Kc6 {[%clk 0:00:10]} 50. b7 {[%clk 0:00:26]}  Kxb7 {[%clk 0:00:10]} 51. Kxc5 {[%clk 0:00:26]}  Kc7 {[%clk 0:00:10]} 52. Kd5 {[%clk 0:00:26]}  Kd7 {[%clk 0:00:11]} 53. Ke4 {[%clk 0:00:17]}  Ke7 {[%clk 0:00:12]} 54. Ke5 {[%clk 0:00:17]}  f6+ {[%clk 0:00:12]} 55. gxf6+ {[%clk 0:00:17]}  Kf7 {[%clk 0:00:13]} 56. Kf4 {[%clk 0:00:16]}  Kxf6 {[%clk 0:00:13]} 57. Kg4 {[%clk 0:00:17]}  h6 {[%clk 0:00:14]} 58. Kf4 {[%clk 0:00:18]}  g5+ {[%clk 0:00:13]} 59. hxg5+ {[%clk 0:00:18]}  hxg5+ {[%clk 0:00:14]} 60. Kg4 {[%clk 0:00:18]}  Kg6 {[%clk 0:00:15]} 61. Kg3 {[%clk 0:00:18]}  Kf5 {[%clk 0:00:16]} 62. Kf3 {[%clk 0:00:18]}  g4+ {[%clk 0:00:16]} 63. Kg3 {[%clk 0:00:18]}  Kg5 {[%clk 0:00:17]} 64. Kg2 {[%clk 0:00:18]}  Kh4 {[%clk 0:00:17]} 65. Kh2 {[%clk 0:00:18]}  Kg5 {[%clk 0:00:17]} 66. Kg3 {[%clk 0:00:18]}  Kf5 {[%clk 0:00:18]} 67. Kg2 {[%clk 0:00:16]}  Ke4 {[%clk 0:00:18]} 68. Kg3 {[%clk 0:00:16]}  Kf5 {[%clk 0:00:19]} 69. Kg2 {[%clk 0:00:16]}  Kf6 {[%clk 0:00:19]} 70. Kg3 {[%clk 0:00:14]}  Kg5 {[%clk 0:00:20]} 71. Kg2 {[%clk 0:00:14]}  Kf4 {[%clk 0:00:21]} 72. Kf2 {[%clk 0:00:15]}  Ke4 {[%clk 0:00:20]} 73. Kg3 {[%clk 0:00:15]}  Kf5 {[%clk 0:00:21]} 1/2-1/2


[Site "https://www.chess.com"]

[Event "Titled Tuesday Blitz October 25 Late 2022"]
[White "Bettalli, Francesco"]
[Black "Gareyev, Timur"]
[WhiteFideId "2816453"]
[BlackFideId "14200937"]
[WhiteElo "2216"]
[BlackElo "2552"]
[Result "0-1"]
[Round "01"]
[TimeControl "180+1"]
[Date "2022.10.26"]
[WhiteClock "0:00:13"]
[BlackClock "0:00:08"]

1. d4 {[%clk 0:02:59]}  Nf6 {[%clk 0:02:56]} 2. Nc3 {[%clk 0:02:58]}  d5 {[%clk 0:02:55]} 3. Bg5 {[%clk 0:02:59]}  c5 {[%clk 0:02:41]} 4. Bxf6 {[%clk 0:02:47]}  gxf6 {[%clk 0:02:32]} 5. e4 {[%clk 0:02:47]}  dxe4 {[%clk 0:02:30]} 6. dxc5 {[%clk 0:02:44]}  Qa5 {[%clk 0:02:28]} 7. Qd4 {[%clk 0:02:41]}  Nc6 {[%clk 0:02:15]} 8. Bb5 {[%clk 0:02:26]}  Qxb5 {[%clk 0:02:14]} 9. Nxb5 {[%clk 0:02:27]}  Nxd4 {[%clk 0:02:14]} 10. Nxd4 {[%clk 0:02:17]}  Bd7 {[%clk 0:02:05]} 11. O-O-O {[%clk 0:02:16]}  e6 {[%clk 0:02:00]} 12. Nb3 {[%clk 0:02:16]}  a5 {[%clk 0:01:58]} 13. Ne2 {[%clk 0:02:14]}  a4 {[%clk 0:01:56]} 14. Nd2 {[%clk 0:02:14]}  f5 {[%clk 0:01:56]} 15. Nc4 {[%clk 0:01:56]}  Bxc5 {[%clk 0:01:50]} 16. Nd4 {[%clk 0:01:45]}  f6 {[%clk 0:01:42]} 17. Rhf1 {[%clk 0:01:18]}  Ke7 {[%clk 0:01:19]} 18. f3 {[%clk 0:01:07]}  b5 {[%clk 0:01:19]} 19. Ne3 {[%clk 0:00:58]}  f4 {[%clk 0:01:15]} 20. Ng4 {[%clk 0:00:58]}  e5 {[%clk 0:01:06]} 21. Ne2 {[%clk 0:00:57]}  Be6 {[%clk 0:00:59]} 22. Nc3 {[%clk 0:00:55]}  exf3 {[%clk 0:00:53]} 23. gxf3 {[%clk 0:00:54]}  h5 {[%clk 0:00:51]} 24. Nf2 {[%clk 0:00:51]}  a3 {[%clk 0:00:49]} 25. b3 {[%clk 0:00:47]}  b4 {[%clk 0:00:46]} 26. Nce4 {[%clk 0:00:43]}  Be3+ {[%clk 0:00:46]} 27. Kb1 {[%clk 0:00:43]}  Rad8 {[%clk 0:00:45]} 28. Nd3 {[%clk 0:00:43]}  Rd4 {[%clk 0:00:44]} 29. Nec5 {[%clk 0:00:16]}  Bh3 {[%clk 0:00:42]} 30. Rfe1 {[%clk 0:00:16]}  Bg2 {[%clk 0:00:37]} 31. Na6 {[%clk 0:00:07]}  Bxf3 {[%clk 0:00:36]} 32. Naxb4 {[%clk 0:00:06]}  e4 {[%clk 0:00:33]} 33. Nc6+ {[%clk 0:00:06]}  Kf7 {[%clk 0:00:27]} 34. Nxd4 {[%clk 0:00:07]}  Bxd1 {[%clk 0:00:23]} 35. Nf5 {[%clk 0:00:03]}  Bg4 {[%clk 0:00:16]} 36. Nd6+ {[%clk 0:00:02]}  Kg6 {[%clk 0:00:15]} 37. Nxe4 {[%clk 0:00:03]}  Re8 {[%clk 0:00:12]} 38. Nc3 {[%clk 0:00:03]}  Rd8 {[%clk 0:00:09]} 39. Ne2 {[%clk 0:00:01]}  f3 {[%clk 0:00:06]} 40. Ng3 {[%clk 0:00:01]}  Bd2 {[%clk 0:00:05]} 41. Rf1 {[%clk 0:00:02]}  Bc3 {[%clk 0:00:04]} 42. Rf2 {[%clk 0:00:02]}  Re8 {[%clk 0:00:04]} 43. Rf1 {[%clk 0:00:02]}  Re3 {[%clk 0:00:03]} 44. Nf2 {[%clk 0:00:02]}  Be6 {[%clk 0:00:03]} 45. Nge4 {[%clk 0:00:02]}  Bd5 {[%clk 0:00:02]} 46. Nxc3 {[%clk 0:00:02]}  Rxc3 {[%clk 0:00:03]} 47. Nd3 {[%clk 0:00:03]}  Be4 {[%clk 0:00:02]} 48. Kc1 {[%clk 0:00:04]}  Bxd3 {[%clk 0:00:02]} 49. Kd2 {[%clk 0:00:05]}  Bxf1 {[%clk 0:00:02]} 50. Kxc3 {[%clk 0:00:05]}  f2 {[%clk 0:00:02]} 51. Kd2 {[%clk 0:00:05]}  Bg2 {[%clk 0:00:03]} 52. Ke3 {[%clk 0:00:05]}  f1=Q {[%clk 0:00:04]} 53. Kd4 {[%clk 0:00:06]}  Qf2+ {[%clk 0:00:05]} 54. Kc4 {[%clk 0:00:06]}  Qd2 {[%clk 0:00:05]} 55. c3 {[%clk 0:00:06]}  Qc2 {[%clk 0:00:06]} 56. b4 {[%clk 0:00:07]}  Be4 {[%clk 0:00:06]} 57. Kb5 {[%clk 0:00:08]}  Bd3+ {[%clk 0:00:07]} 58. c4 {[%clk 0:00:09]}  Qxa2 {[%clk 0:00:07]} 59. Kb6 {[%clk 0:00:10]}  Qxc4 {[%clk 0:00:08]} 60. b5 {[%clk 0:00:10]}  Qxb5+ {[%clk 0:00:09]} 61. Kc7 {[%clk 0:00:11]}  a2 {[%clk 0:00:09]} 62. Kd6 {[%clk 0:00:12]}  a1=Q {[%clk 0:00:08]} 63. h4 {[%clk 0:00:13]} 0-1


[Site "https://www.chess.com"]

[Event "Titled Tuesday Blitz October 25 Late 2022"]
[White "Brown, Andrew"]
[Black "Wieczorek, Oskar"]
[WhiteFideId "3206513"]
[BlackFideId "1133950"]
[WhiteElo "2245"]
[BlackElo "2404"]
[Result "0-1"]
[Round "01"]
[TimeControl "180+1"]
[Date "2022.10.26"]
[WhiteClock "0:00:04"]
[BlackClock "0:00:05"]

1. d4 {[%clk 0:03:00]}  Nf6 {[%clk 0:03:00]} 2. c4 {[%clk 0:03:00]}  e6 {[%clk 0:03:00]} 3. Nc3 {[%clk 0:03:01]}  d5 {[%clk 0:02:53]} 4. Nf3 {[%clk 0:03:00]}  Be7 {[%clk 0:02:52]} 5. Bg5 {[%clk 0:03:01]}  O-O {[%clk 0:02:51]} 6. e3 {[%clk 0:03:01]}  Ne4 {[%clk 0:02:51]} 7. Bxe7 {[%clk 0:03:00]}  Qxe7 {[%clk 0:02:51]} 8. Nxe4 {[%clk 0:02:59]}  dxe4 {[%clk 0:02:51]} 9. Nd2 {[%clk 0:02:59]}  f5 {[%clk 0:02:39]} 10. f4 {[%clk 0:02:59]}  c5 {[%clk 0:02:17]} 11. Nb3 {[%clk 0:02:51]}  cxd4 {[%clk 0:02:15]} 12. Qxd4 {[%clk 0:02:46]}  Nc6 {[%clk 0:02:14]} 13. Qc3 {[%clk 0:02:40]}  e5 {[%clk 0:02:10]} 14. fxe5 {[%clk 0:02:04]}  Qxe5 {[%clk 0:02:11]} 15. Qxe5 {[%clk 0:02:00]}  Nxe5 {[%clk 0:02:12]} 16. Nd4 {[%clk 0:01:58]}  Bd7 {[%clk 0:01:58]} 17. Be2 {[%clk 0:01:54]}  Kf7 {[%clk 0:01:54]} 18. Rf1 {[%clk 0:01:53]}  Ke7 {[%clk 0:01:55]} 19. Kd2 {[%clk 0:01:36]}  g5 {[%clk 0:01:52]} 20. g3 {[%clk 0:01:35]}  g4 {[%clk 0:01:48]} 21. Rf4 {[%clk 0:01:30]}  Ng6 {[%clk 0:01:45]} 22. Rf2 {[%clk 0:01:28]}  Rf6 {[%clk 0:01:41]} 23. Raf1 {[%clk 0:01:28]}  Raf8 {[%clk 0:01:41]} 24. Kc3 {[%clk 0:01:18]}  h5 {[%clk 0:01:40]} 25. h4 {[%clk 0:01:07]}  Ne5 {[%clk 0:01:31]} 26. Rd1 {[%clk 0:01:04]}  Nf3 {[%clk 0:01:31]} 27. Bf1 {[%clk 0:00:59]}  Bc8 {[%clk 0:01:16]} 28. Kb4 {[%clk 0:00:59]}  Rd8 {[%clk 0:01:12]} 29. c5 {[%clk 0:00:56]}  b6 {[%clk 0:01:05]} 30. Rc2 {[%clk 0:00:42]}  bxc5+ {[%clk 0:00:51]} 31. Rxc5 {[%clk 0:00:37]}  Rfd6 {[%clk 0:00:37]} 32. Rdc1 {[%clk 0:00:31]}  Nxd4 {[%clk 0:00:33]} 33. Rxc8 {[%clk 0:00:28]}  Rb6+ {[%clk 0:00:23]} 34. Ka3 {[%clk 0:00:27]}  Rxc8 {[%clk 0:00:09]} 35. Rxc8 {[%clk 0:00:28]}  Nf3 {[%clk 0:00:08]} 36. Rc7+ {[%clk 0:00:26]}  Kf6 {[%clk 0:00:08]} 37. Rxa7 {[%clk 0:00:26]}  Rd6 {[%clk 0:00:09]} 38. Ra6 {[%clk 0:00:26]}  Rxa6+ {[%clk 0:00:09]} 39. Bxa6 {[%clk 0:00:27]}  Ne1 {[%clk 0:00:08]} 40. Kb3 {[%clk 0:00:26]}  Ng2 {[%clk 0:00:08]} 41. a4 {[%clk 0:00:26]}  Nxe3 {[%clk 0:00:09]} 42. Be2 {[%clk 0:00:26]}  Nd5 {[%clk 0:00:09]} 43. a5 {[%clk 0:00:27]}  f4 {[%clk 0:00:08]} 44. gxf4 {[%clk 0:00:25]}  g3 {[%clk 0:00:09]} 45. Bf1 {[%clk 0:00:23]}  e3 {[%clk 0:00:09]} 46. Kc4 {[%clk 0:00:17]}  e2 {[%clk 0:00:08]} 47. Bxe2 {[%clk 0:00:18]}  g2 {[%clk 0:00:05]} 48. Kxd5 {[%clk 0:00:18]}  g1=Q {[%clk 0:00:06]} 49. b4 {[%clk 0:00:18]}  Qe1 {[%clk 0:00:06]} 50. Bc4 {[%clk 0:00:18]}  Qxb4 {[%clk 0:00:06]} 51. a6 {[%clk 0:00:19]}  Qb6 {[%clk 0:00:05]} 52. Bd3 {[%clk 0:00:16]}  Qd8+ {[%clk 0:00:04]} 53. Ke4 {[%clk 0:00:16]}  Qe7+ {[%clk 0:00:04]} 54. Kd4 {[%clk 0:00:15]}  Qd6+ {[%clk 0:00:04]} 55. Ke4 {[%clk 0:00:15]}  Qb4+ {[%clk 0:00:04]} 56. Kd5 {[%clk 0:00:14]}  Qa5+ {[%clk 0:00:04]} 57. Kd4 {[%clk 0:00:10]}  Ke6 {[%clk 0:00:04]} 58. f5+ {[%clk 0:00:09]}  Kf6 {[%clk 0:00:05]} 59. Bc4 {[%clk 0:00:09]}  Qd2+ {[%clk 0:00:04]} 60. Kc5 {[%clk 0:00:09]}  Qa5+ {[%clk 0:00:03]} 61. Bb5 {[%clk 0:00:09]}  Kxf5 {[%clk 0:00:04]} 62. Kc6 {[%clk 0:00:09]}  Kg4 {[%clk 0:00:04]} 63. Be2+ {[%clk 0:00:07]}  Kxh4 {[%clk 0:00:03]} 64. Kb7 {[%clk 0:00:07]}  Qb4+ {[%clk 0:00:04]} 65. Ka8 {[%clk 0:00:03]}  Qe4+ {[%clk 0:00:04]} 66. Kb8 {[%clk 0:00:03]}  Qxe2 {[%clk 0:00:04]} 67. a7 {[%clk 0:00:04]}  Qa6 {[%clk 0:00:05]} 0-1


[Site "https://www.chess.com"]

[Event "Titled Tuesday Blitz October 25 Late 2022"]
[White "Dzierzak, Radoslaw"]
[Black "Injac, Teodora"]
[WhiteFideId "1161407"]
[BlackFideId "932400"]
[WhiteElo "2111"]
[BlackElo "2286"]
[Result "1-0"]
[Round "01"]
[TimeControl "180+1"]
[Date "2022.10.26"]
[WhiteClock "0:00:04"]
[BlackClock "0:00:05"]

1. e4 {[%clk 0:03:00]}  e6 {[%clk 0:02:59]} 2. Nf3 {[%clk 0:03:00]}  d5 {[%clk 0:02:59]} 3. Nc3 {[%clk 0:03:00]}  Nf6 {[%clk 0:02:59]} 4. e5 {[%clk 0:03:00]}  Nfd7 {[%clk 0:02:59]} 5. d4 {[%clk 0:03:01]}  c5 {[%clk 0:02:58]} 6. dxc5 {[%clk 0:03:01]}  Nc6 {[%clk 0:02:56]} 7. Bf4 {[%clk 0:03:00]}  Nxc5 {[%clk 0:02:51]} 8. h4 {[%clk 0:02:59]}  a6 {[%clk 0:02:49]} 9. h5 {[%clk 0:02:59]}  h6 {[%clk 0:02:49]} 10. Be2 {[%clk 0:02:54]}  Be7 {[%clk 0:02:46]} 11. Rh3 {[%clk 0:02:52]}  b5 {[%clk 0:02:44]} 12. Rg3 {[%clk 0:02:52]}  Bf8 {[%clk 0:02:43]} 13. a3 {[%clk 0:02:39]}  d4 {[%clk 0:02:39]} 14. Nb1 {[%clk 0:02:08]}  Bb7 {[%clk 0:02:38]} 15. Nbd2 {[%clk 0:02:07]}  Qc7 {[%clk 0:02:28]} 16. Kf1 {[%clk 0:02:06]}  Rd8 {[%clk 0:02:23]} 17. b4 {[%clk 0:02:06]}  Na4 {[%clk 0:02:21]} 18. Bd3 {[%clk 0:02:05]}  Nc3 {[%clk 0:02:19]} 19. Qe1 {[%clk 0:02:03]}  Ne7 {[%clk 0:02:09]} 20. Ne4 {[%clk 0:01:59]}  Nf5 {[%clk 0:02:07]} 21. Nd6+ {[%clk 0:01:50]}  Nxd6 {[%clk 0:02:03]} 22. exd6 {[%clk 0:01:50]}  Bxd6 {[%clk 0:02:04]} 23. Bxd6 {[%clk 0:01:45]}  Qxd6 {[%clk 0:02:04]} 24. Rxg7 {[%clk 0:01:44]}  Bxf3 {[%clk 0:02:01]} 25. gxf3 {[%clk 0:01:44]}  Qf4 {[%clk 0:01:55]} 26. Bg6 {[%clk 0:01:40]}  Rd7 {[%clk 0:00:58]} 27. Qxe6+ {[%clk 0:01:36]}  Kf8 {[%clk 0:00:59]} 28. Qxd7 {[%clk 0:00:52]}  Kxg7 {[%clk 0:00:59]} 29. Re1 {[%clk 0:00:51]}  Rf8 {[%clk 0:00:48]} 30. Re7 {[%clk 0:00:49]}  Qc1+ {[%clk 0:00:39]} 31. Kg2 {[%clk 0:00:42]}  Qg5+ {[%clk 0:00:39]} 32. Kf1 {[%clk 0:00:22]}  Qf4 {[%clk 0:00:38]} 33. Bd3 {[%clk 0:00:18]}  Kg8 {[%clk 0:00:32]} 34. Qg4+ {[%clk 0:00:16]}  Qxg4 {[%clk 0:00:31]} 35. fxg4 {[%clk 0:00:17]}  Nb1 {[%clk 0:00:24]} 36. Ra7 {[%clk 0:00:17]}  Nxa3 {[%clk 0:00:21]} 37. Rxa6 {[%clk 0:00:17]}  Nc4 {[%clk 0:00:20]} 38. Rxh6 {[%clk 0:00:16]}  Ra8 {[%clk 0:00:18]} 39. Rc6 {[%clk 0:00:09]}  Ne5 {[%clk 0:00:14]} 40. Rc5 {[%clk 0:00:05]}  Nxd3 {[%clk 0:00:12]} 41. cxd3 {[%clk 0:00:06]}  Ra3 {[%clk 0:00:09]} 42. Ke2 {[%clk 0:00:05]}  Ra2+ {[%clk 0:00:09]} 43. Kf3 {[%clk 0:00:06]}  Rd2 {[%clk 0:00:10]} 44. Ke4 {[%clk 0:00:06]}  Rxf2 {[%clk 0:00:10]} 45. Kxd4 {[%clk 0:00:06]}  Rf4+ {[%clk 0:00:09]} 46. Ke5 {[%clk 0:00:05]}  Rxg4 {[%clk 0:00:10]} 47. d4 {[%clk 0:00:05]}  Rg5+ {[%clk 0:00:10]} 48. Kf6 {[%clk 0:00:04]}  Rg4 {[%clk 0:00:09]} 49. Rc8+ {[%clk 0:00:04]}  Kh7 {[%clk 0:00:09]} 50. d5 {[%clk 0:00:04]}  Rxb4 {[%clk 0:00:08]} 51. d6 {[%clk 0:00:03]}  Rd4 {[%clk 0:00:07]} 52. Ke7 {[%clk 0:00:04]}  f5 {[%clk 0:00:05]} 53. d7 {[%clk 0:00:04]} 1-0


[Site "https://www.chess.com"]

[Event "Titled Tuesday Blitz October 25 Late 2022"]
[White "Ernst, Sipke"]
[Black "Bogaudinov, Rushan"]
[WhiteFideId "1004689"]
[BlackFideId "4129288"]
[WhiteElo "2438"]
[BlackElo "1945"]
[Result "1-0"]
[Round "01"]
[TimeControl "180+1"]
[Date "2022.10.26"]
[WhiteClock "0:01:04"]
[BlackClock "0:00:14"]

1. d4 {[%clk 0:03:00]}  d5 {[%clk 0:02:57]} 2. c4 {[%clk 0:03:00]}  e6 {[%clk 0:02:57]} 3. Nf3 {[%clk 0:03:00]}  Nf6 {[%clk 0:02:57]} 4. g3 {[%clk 0:03:00]}  Bb4+ {[%clk 0:02:55]} 5. Nc3 {[%clk 0:02:59]}  O-O {[%clk 0:02:53]} 6. Bg2 {[%clk 0:02:59]}  c5 {[%clk 0:02:53]} 7. O-O {[%clk 0:02:53]}  cxd4 {[%clk 0:02:50]} 8. Nxd4 {[%clk 0:02:50]}  e5 {[%clk 0:02:43]} 9. Nc2 {[%clk 0:02:49]}  Bxc3 {[%clk 0:02:42]} 10. bxc3 {[%clk 0:02:50]}  Be6 {[%clk 0:02:29]} 11. Ne3 {[%clk 0:02:49]}  e4 {[%clk 0:02:16]} 12. cxd5 {[%clk 0:02:44]}  Nxd5 {[%clk 0:02:12]} 13. Bxe4 {[%clk 0:02:44]}  Nxc3 {[%clk 0:02:00]} 14. Qxd8 {[%clk 0:02:39]}  Nxe2+ {[%clk 0:01:59]} 15. Kg2 {[%clk 0:02:38]}  Rxd8 {[%clk 0:01:58]} 16. Bxb7 {[%clk 0:02:38]}  Nd7 {[%clk 0:01:55]} 17. Bxa8 {[%clk 0:02:37]}  Rxa8 {[%clk 0:01:54]} 18. Re1 {[%clk 0:02:20]}  Nd4 {[%clk 0:01:46]} 19. Bb2 {[%clk 0:02:20]}  Nf5 {[%clk 0:01:38]} 20. Nxf5 {[%clk 0:02:18]}  Bxf5 {[%clk 0:01:39]} 21. Bd4 {[%clk 0:02:18]}  Be6 {[%clk 0:01:35]} 22. a4 {[%clk 0:02:15]}  a6 {[%clk 0:01:24]} 23. Rab1 {[%clk 0:02:10]}  h5 {[%clk 0:01:18]} 24. f3 {[%clk 0:02:10]}  Rd8 {[%clk 0:01:03]} 25. Red1 {[%clk 0:02:03]}  Rc8 {[%clk 0:01:01]} 26. Rbc1 {[%clk 0:02:01]}  Rb8 {[%clk 0:01:01]} 27. Rb1 {[%clk 0:01:55]}  Rc8 {[%clk 0:01:00]} 28. Rdc1 {[%clk 0:01:55]}  Rd8 {[%clk 0:01:00]} 29. Kf2 {[%clk 0:01:45]}  Nf8 {[%clk 0:00:59]} 30. Be3 {[%clk 0:01:44]}  Ng6 {[%clk 0:00:53]} 31. Rb6 {[%clk 0:01:38]}  Ne5 {[%clk 0:00:52]} 32. Rc3 {[%clk 0:01:22]}  a5 {[%clk 0:00:37]} 33. Rb5 {[%clk 0:01:15]}  Nc4 {[%clk 0:00:33]} 34. Rxh5 {[%clk 0:01:08]}  g6 {[%clk 0:00:21]} 35. Rc5 {[%clk 0:01:08]}  Nxe3 {[%clk 0:00:20]} 36. Kxe3 {[%clk 0:01:06]}  Ra8 {[%clk 0:00:17]} 37. h4 {[%clk 0:01:06]}  Kg7 {[%clk 0:00:17]} 38. g4 {[%clk 0:01:06]}  Ra7 {[%clk 0:00:18]} 39. h5 {[%clk 0:01:07]}  gxh5 {[%clk 0:00:17]} 40. Rxh5 {[%clk 0:01:06]}  Kf6 {[%clk 0:00:18]} 41. Rcc5 {[%clk 0:01:06]}  Rb7 {[%clk 0:00:17]} 42. Rb5 {[%clk 0:01:06]}  Rc7 {[%clk 0:00:16]} 43. Rhc5 {[%clk 0:01:06]}  Re7 {[%clk 0:00:16]} 44. Kf4 {[%clk 0:01:06]}  Bd7 {[%clk 0:00:15]} 45. Rb6+ {[%clk 0:01:05]}  Kg7 {[%clk 0:00:15]} 46. Rc7 {[%clk 0:01:05]}  Kf8 {[%clk 0:00:14]} 47. Rb8+ {[%clk 0:01:04]}  Kg7 {[%clk 0:00:14]} 48. Rbb7 {[%clk 0:01:04]} 1-0


[Site "https://www.chess.com"]

[Event "Titled Tuesday Blitz October 25 Late 2022"]
[White "Estrada Nieto, Julian"]
[Black "Hambleton, Aman"]
[WhiteFideId "5101018"]
[BlackFideId "2606577"]
[WhiteElo "2252"]
[BlackElo "2538"]
[Result "0-1"]
[Round "01"]
[TimeControl "180+1"]
[Date "2022.10.26"]
[WhiteClock "0:00:06"]
[BlackClock "0:00:08"]

1. e4 {[%clk 0:03:00]}  c5 {[%clk 0:02:59]} 2. Nf3 {[%clk 0:03:01]}  e6 {[%clk 0:02:59]} 3. c3 {[%clk 0:03:00]}  Nf6 {[%clk 0:02:59]} 4. e5 {[%clk 0:03:00]}  Nd5 {[%clk 0:02:59]} 5. Bc4 {[%clk 0:03:01]}  Nb6 {[%clk 0:02:55]} 6. Bb3 {[%clk 0:03:01]}  c4 {[%clk 0:02:55]} 7. Bc2 {[%clk 0:03:02]}  Nc6 {[%clk 0:02:55]} 8. d4 {[%clk 0:03:02]}  cxd3 {[%clk 0:02:56]} 9. Qxd3 {[%clk 0:03:02]}  d6 {[%clk 0:02:50]} 10. exd6 {[%clk 0:03:02]}  Qxd6 {[%clk 0:02:51]} 11. Qe2 {[%clk 0:03:02]}  Be7 {[%clk 0:02:39]} 12. O-O {[%clk 0:03:02]}  Qc5 {[%clk 0:02:27]} 13. Nbd2 {[%clk 0:02:53]}  Nd5 {[%clk 0:02:06]} 14. Ne4 {[%clk 0:02:52]}  Qb6 {[%clk 0:02:07]} 15. Rd1 {[%clk 0:02:36]}  O-O {[%clk 0:02:02]} 16. a3 {[%clk 0:02:32]}  Qc7 {[%clk 0:01:54]} 17. c4 {[%clk 0:01:46]}  Nf4 {[%clk 0:01:39]} 18. Qe3 {[%clk 0:01:45]}  e5 {[%clk 0:01:40]} 19. Bd2 {[%clk 0:01:26]}  Bg4 {[%clk 0:01:14]} 20. Bc3 {[%clk 0:01:14]}  f6 {[%clk 0:01:08]} 21. Rd2 {[%clk 0:01:02]}  Rfd8 {[%clk 0:01:03]} 22. Rad1 {[%clk 0:01:00]}  Rxd2 {[%clk 0:01:02]} 23. Rxd2 {[%clk 0:01:00]}  Rd8 {[%clk 0:01:01]} 24. h3 {[%clk 0:01:00]}  Be6 {[%clk 0:00:53]} 25. c5 {[%clk 0:00:44]}  Nd5 {[%clk 0:00:36]} 26. Qe1 {[%clk 0:00:39]}  Nxc3 {[%clk 0:00:36]} 27. Rxd8+ {[%clk 0:00:39]}  Qxd8 {[%clk 0:00:26]} 28. Qxc3 {[%clk 0:00:40]}  Qd5 {[%clk 0:00:27]} 29. Nfd2 {[%clk 0:00:37]}  Nd4 {[%clk 0:00:26]} 30. Bd1 {[%clk 0:00:37]}  f5 {[%clk 0:00:21]} 31. Ng3 {[%clk 0:00:31]}  Qxc5 {[%clk 0:00:17]} 32. Qxc5 {[%clk 0:00:30]}  Bxc5 {[%clk 0:00:18]} 33. Nf3 {[%clk 0:00:30]}  Nxf3+ {[%clk 0:00:16]} 34. Bxf3 {[%clk 0:00:30]}  e4 {[%clk 0:00:17]} 35. Be2 {[%clk 0:00:30]}  Bd4 {[%clk 0:00:15]} 36. b4 {[%clk 0:00:29]}  Bd7 {[%clk 0:00:07]} 37. Bd1 {[%clk 0:00:29]}  Bb2 {[%clk 0:00:07]} 38. a4 {[%clk 0:00:29]}  Kf7 {[%clk 0:00:06]} 39. Bb3+ {[%clk 0:00:29]}  Kf6 {[%clk 0:00:05]} 40. Ne2 {[%clk 0:00:29]}  Ke5 {[%clk 0:00:04]} 41. Kf1 {[%clk 0:00:29]}  g6 {[%clk 0:00:04]} 42. Ke1 {[%clk 0:00:29]}  Bd4 {[%clk 0:00:04]} 43. f4+ {[%clk 0:00:28]}  exf3 {[%clk 0:00:04]} 44. gxf3 {[%clk 0:00:29]}  Be3 {[%clk 0:00:04]} 45. Kd1 {[%clk 0:00:28]}  Bc6 {[%clk 0:00:05]} 46. Bg8 {[%clk 0:00:25]}  h6 {[%clk 0:00:05]} 47. Bh7 {[%clk 0:00:23]}  Bxa4+ {[%clk 0:00:04]} 48. Ke1 {[%clk 0:00:21]}  g5 {[%clk 0:00:04]} 49. Ng3 {[%clk 0:00:20]}  Bd7 {[%clk 0:00:04]} 50. Nh5 {[%clk 0:00:20]}  b6 {[%clk 0:00:03]} 51. Ke2 {[%clk 0:00:20]}  Bd4 {[%clk 0:00:02]} 52. Bg8 {[%clk 0:00:19]}  Bb5+ {[%clk 0:00:02]} 53. Kd2 {[%clk 0:00:19]}  a5 {[%clk 0:00:02]} 54. bxa5 {[%clk 0:00:19]}  bxa5 {[%clk 0:00:03]} 55. Ng3 {[%clk 0:00:17]}  a4 {[%clk 0:00:03]} 56. Ne2 {[%clk 0:00:18]}  Bc5 {[%clk 0:00:02]} 57. Nc1 {[%clk 0:00:17]}  Bb4+ {[%clk 0:00:02]} 58. Kc2 {[%clk 0:00:17]}  Bc6 {[%clk 0:00:03]} 59. Nd3+ {[%clk 0:00:16]}  Kf6 {[%clk 0:00:03]} 60. Nxb4 {[%clk 0:00:17]}  Bxf3 {[%clk 0:00:04]} 61. Bc4 {[%clk 0:00:14]}  g4 {[%clk 0:00:04]} 62. hxg4 {[%clk 0:00:14]}  fxg4 {[%clk 0:00:05]} 63. Bd5 {[%clk 0:00:13]}  Bxd5 {[%clk 0:00:05]} 64. Nxd5+ {[%clk 0:00:13]}  Ke5 {[%clk 0:00:06]} 65. Ne3 {[%clk 0:00:13]}  Kf4 {[%clk 0:00:06]} 66. Kd3 {[%clk 0:00:12]}  a3 {[%clk 0:00:05]} 67. Nd5+ {[%clk 0:00:11]}  Kf3 {[%clk 0:00:05]} 68. Nc3 {[%clk 0:00:10]}  g3 {[%clk 0:00:06]} 69. Ne2 {[%clk 0:00:07]}  a2 {[%clk 0:00:06]} 70. Nd4+ {[%clk 0:00:06]}  Kf2 {[%clk 0:00:06]} 71. Nc2 {[%clk 0:00:06]}  g2 {[%clk 0:00:07]} 72. Kc3 {[%clk 0:00:06]}  g1=Q {[%clk 0:00:08]} 0-1


[Site "https://www.chess.com"]